[Event "Titled Tuesday Blitz July 18 Late 2023"]
[White "CatLivesMatter"]
[Black "Gertler, David"]
[BlackFideId "2017377"]
[WhiteElo "2486"]
[BlackElo "2292"]
[Result "1/2-1/2"]
[Round "4"]
[TimeControl "180+2"]
[Date "2023.07.18"]
[WhiteClock "0:00:21"]
[BlackClock "0:01:51"]
[Board "131"]

1. e4 {[%clk 0:02:54]}  e5 {[%clk 0:02:49]} 2. Nf3 {[%clk 0:02:54]}  Nc6 {[%clk 0:02:49]} 3. Bb5 {[%clk 0:02:54]}  Bc5 {[%clk 0:02:49]} 4. O-O {[%clk 0:02:53]}  Qf6 {[%clk 0:02:50]} 5. c3 {[%clk 0:02:52]}  Nge7 {[%clk 0:02:47]} 6. b4 {[%clk 0:02:34]}  Bb6 {[%clk 0:02:46]} 7. a4 {[%clk 0:02:34]}  a6 {[%clk 0:02:47]} 8. Be2 {[%clk 0:02:33]}  h6 {[%clk 0:02:45]} 9. Na3 {[%clk 0:02:31]}  d6 {[%clk 0:02:44]} 10. Nc4 {[%clk 0:02:31]}  Ba7 {[%clk 0:02:44]} 11. b5 {[%clk 0:02:30]}  Nd8 {[%clk 0:02:44]} 12. d4 {[%clk 0:02:29]}  Ng6 {[%clk 0:02:42]} 13. dxe5 {[%clk 0:02:15]}  dxe5 {[%clk 0:02:42]} 14. Ba3 {[%clk 0:02:13]}  Ne6 {[%clk 0:02:42]} 15. b6 {[%clk 0:02:04]}  Bxb6 {[%clk 0:02:39]} 16. Nxb6 {[%clk 0:02:04]}  cxb6 {[%clk 0:02:40]} 17. Qd6 {[%clk 0:02:03]}  Nef4 {[%clk 0:02:34]} 18. Bc4 {[%clk 0:01:59]}  Qxd6 {[%clk 0:02:30]} 19. Bxd6 {[%clk 0:02:00]}  Be6 {[%clk 0:02:30]} 20. Bxe6 {[%clk 0:01:58]}  Nxe6 {[%clk 0:02:30]} 21. Nxe5 {[%clk 0:01:59]}  Nxe5 {[%clk 0:02:30]} 22. Bxe5 {[%clk 0:01:59]}  O-O {[%clk 0:02:30]} 23. Rab1 {[%clk 0:01:58]}  Nc5 {[%clk 0:02:28]} 24. Bd6 {[%clk 0:01:52]}  Rfe8 {[%clk 0:02:28]} 25. Bxc5 {[%clk 0:01:52]}  bxc5 {[%clk 0:02:28]} 26. f3 {[%clk 0:01:50]}  Re7 {[%clk 0:02:23]} 27. Rb6 {[%clk 0:01:40]}  Rd8 {[%clk 0:02:20]} 28. Rfb1 {[%clk 0:01:29]}  Rdd7 {[%clk 0:02:20]} 29. Kf2 {[%clk 0:01:27]}  Rd2+ {[%clk 0:02:20]} 30. Ke3 {[%clk 0:01:21]}  Rxg2 {[%clk 0:02:16]} 31. Rxb7 {[%clk 0:01:21]}  Rxb7 {[%clk 0:02:16]} 32. Rxb7 {[%clk 0:01:22]}  Ra2 {[%clk 0:02:16]} 33. Rb8+ {[%clk 0:01:16]}  Kh7 {[%clk 0:02:16]} 34. Rc8 {[%clk 0:01:17]}  Rxa4 {[%clk 0:02:14]} 35. Rxc5 {[%clk 0:01:18]}  f6 {[%clk 0:02:10]} 36. c4 {[%clk 0:01:16]}  Ra1 {[%clk 0:02:08]} 37. Rc8 {[%clk 0:01:10]}  Kg6 {[%clk 0:02:03]} 38. c5 {[%clk 0:01:10]}  Kf7 {[%clk 0:02:04]} 39. Rc7+ {[%clk 0:01:04]}  Kf8 {[%clk 0:01:59]} 40. Kd4 {[%clk 0:01:03]}  a5 {[%clk 0:01:52]} 41. Kd5 {[%clk 0:01:03]}  a4 {[%clk 0:01:52]} 42. Ke6 {[%clk 0:01:03]}  Kg8 {[%clk 0:01:51]} 43. c6 {[%clk 0:01:01]}  a3 {[%clk 0:01:51]} 44. Ra7 {[%clk 0:00:56]}  a2 {[%clk 0:01:52]} 45. c7 {[%clk 0:00:56]}  Rc1 {[%clk 0:01:52]} 46. Kd7 {[%clk 0:00:54]}  Rd1+ {[%clk 0:01:52]} 47. Ke7 {[%clk 0:00:52]}  Rc1 {[%clk 0:01:52]} 48. Kd8 {[%clk 0:00:47]}  Rd1+ {[%clk 0:01:52]} 49. Ke7 {[%clk 0:00:43]}  Rc1 {[%clk 0:01:52]} 50. Kd8 {[%clk 0:00:36]}  Rd1+ {[%clk 0:01:51]} 51. Ke8 {[%clk 0:00:30]}  Rc1 {[%clk 0:01:51]} 52. Kd7 {[%clk 0:00:21]}  Rd1+ {[%clk 0:01:51]} 1/2-1/2


[Site "https://www.chess.com"]

[Event "Titled Tuesday Blitz July 18 Late 2023"]
[White "JERO-8914"]
[Black "Vaglio Munoz, Jaime"]
[BlackFideId "6500145"]
[WhiteElo "2476"]
[BlackElo "2286"]
[Result "1-0"]
[Round "4"]
[TimeControl "180+2"]
[Date "2023.07.18"]
[WhiteClock "0:00:51"]
[BlackClock "0:00:31"]
[Board "133"]

1. e4 {[%clk 0:02:59]}  c5 {[%clk 0:02:59]} 2. c3 {[%clk 0:02:59]}  Qa5 {[%clk 0:02:58]} 3. a3 {[%clk 0:02:54]}  Nc6 {[%clk 0:02:57]} 4. Nf3 {[%clk 0:02:51]}  Nf6 {[%clk 0:02:56]} 5. Bd3 {[%clk 0:02:50]}  d5 {[%clk 0:02:52]} 6. e5 {[%clk 0:02:48]}  Ng4 {[%clk 0:02:51]} 7. Qe2 {[%clk 0:02:47]}  Nh6 {[%clk 0:02:41]} 8. O-O {[%clk 0:02:47]}  Bg4 {[%clk 0:02:37]} 9. Re1 {[%clk 0:02:46]}  e6 {[%clk 0:02:37]} 10. h3 {[%clk 0:02:40]}  Bh5 {[%clk 0:02:34]} 11. b3 {[%clk 0:02:34]}  Bg6 {[%clk 0:02:29]} 12. Bxg6 {[%clk 0:02:32]}  hxg6 {[%clk 0:02:30]} 13. Bb2 {[%clk 0:02:31]}  Nf5 {[%clk 0:02:29]} 14. b4 {[%clk 0:02:30]}  Qb6 {[%clk 0:02:19]} 15. d3 {[%clk 0:02:26]}  a5 {[%clk 0:02:17]} 16. Nbd2 {[%clk 0:02:21]}  Be7 {[%clk 0:02:02]} 17. Nb3 {[%clk 0:01:56]}  O-O {[%clk 0:01:48]} 18. Nxc5 {[%clk 0:01:55]}  Bxc5 {[%clk 0:01:47]} 19. bxc5 {[%clk 0:01:55]}  Qxc5 {[%clk 0:01:48]} 20. a4 {[%clk 0:01:56]}  Rfc8 {[%clk 0:01:26]} 21. Ba3 {[%clk 0:01:45]}  Qa7 {[%clk 0:01:25]} 22. Rab1 {[%clk 0:01:42]}  b6 {[%clk 0:01:23]} 23. Rb5 {[%clk 0:01:41]}  d4 {[%clk 0:01:19]} 24. c4 {[%clk 0:01:41]}  Rab8 {[%clk 0:01:08]} 25. Reb1 {[%clk 0:01:38]}  Qc7 {[%clk 0:01:04]} 26. Qe4 {[%clk 0:01:38]}  Rb7 {[%clk 0:01:01]} 27. g4 {[%clk 0:01:36]}  Nfe7 {[%clk 0:00:59]} 28. Bd6 {[%clk 0:01:36]}  Qd7 {[%clk 0:00:57]} 29. Rxb6 {[%clk 0:01:36]}  Rxb6 {[%clk 0:00:57]} 30. Rxb6 {[%clk 0:01:37]}  Nb4 {[%clk 0:00:45]} 31. Rb7 {[%clk 0:01:34]}  Qxa4 {[%clk 0:00:44]} 32. Rxe7 {[%clk 0:01:33]}  Qd1+ {[%clk 0:00:42]} 33. Kg2 {[%clk 0:01:32]}  Nxd3 {[%clk 0:00:42]} 34. Rxf7 {[%clk 0:01:11]}  Kxf7 {[%clk 0:00:35]} 35. Qb7+ {[%clk 0:01:11]}  Kg8 {[%clk 0:00:35]} 36. Qxc8+ {[%clk 0:01:11]}  Kh7 {[%clk 0:00:34]} 37. Ng5+ {[%clk 0:01:04]}  Kh6 {[%clk 0:00:33]} 38. Nf7+ {[%clk 0:00:52]}  Kh7 {[%clk 0:00:31]} 39. Qh8# {[%clk 0:00:51]} 1-0


[Site "https://www.chess.com"]

[Event "Titled Tuesday Blitz July 18 Late 2023"]
[White "Chemin, Justo Reinaldo"]
[Black "Sos Andreu, Eric"]
[WhiteFideId "2101580"]
[BlackFideId "22247017"]
[WhiteElo "2269"]
[BlackElo "2474"]
[Result "0-1"]
[Round "4"]
[TimeControl "180+2"]
[Date "2023.07.18"]
[WhiteClock "0:00:00"]
[BlackClock "0:00:01"]
[Board "136"]

1. e4 {[%clk 0:03:00]}  c6 {[%clk 0:02:56]} 2. d4 {[%clk 0:03:00]}  d5 {[%clk 0:02:56]} 3. exd5 {[%clk 0:03:00]}  cxd5 {[%clk 0:02:56]} 4. Bd3 {[%clk 0:02:59]}  Nc6 {[%clk 0:02:57]} 5. c3 {[%clk 0:03:00]}  Qc7 {[%clk 0:02:57]} 6. Nf3 {[%clk 0:02:51]}  Nf6 {[%clk 0:02:55]} 7. O-O {[%clk 0:02:49]}  Bg4 {[%clk 0:02:55]} 8. Re1 {[%clk 0:02:47]}  e6 {[%clk 0:02:55]} 9. h3 {[%clk 0:02:47]}  Bh5 {[%clk 0:02:55]} 10. Bg5 {[%clk 0:02:43]}  Be7 {[%clk 0:02:53]} 11. Bh4 {[%clk 0:02:42]}  O-O {[%clk 0:02:52]} 12. Bg3 {[%clk 0:02:42]}  Bd6 {[%clk 0:02:52]} 13. Bxd6 {[%clk 0:02:38]}  Qxd6 {[%clk 0:02:53]} 14. Nbd2 {[%clk 0:02:35]}  Rab8 {[%clk 0:02:49]} 15. Qc2 {[%clk 0:02:30]}  b5 {[%clk 0:02:46]} 16. Ne5 {[%clk 0:02:29]}  a5 {[%clk 0:02:34]} 17. f4 {[%clk 0:02:21]}  Bg6 {[%clk 0:02:33]} 18. Bxg6 {[%clk 0:02:11]}  hxg6 {[%clk 0:02:34]} 19. Re2 {[%clk 0:02:08]}  Rfc8 {[%clk 0:02:32]} 20. Rae1 {[%clk 0:02:06]}  Nxd4 {[%clk 0:02:30]} 21. Qd3 {[%clk 0:02:04]}  Nxe2+ {[%clk 0:02:30]} 22. Rxe2 {[%clk 0:02:01]}  b4 {[%clk 0:02:28]} 23. Ndf3 {[%clk 0:01:51]}  bxc3 {[%clk 0:02:27]} 24. bxc3 {[%clk 0:01:52]}  Qc5+ {[%clk 0:02:25]} 25. Re3 {[%clk 0:01:50]}  Rb2 {[%clk 0:02:02]} 26. Kh2 {[%clk 0:01:46]}  Rxa2 {[%clk 0:01:55]} 27. Nxf7 {[%clk 0:01:43]}  Ne4 {[%clk 0:01:33]} 28. N7g5 {[%clk 0:01:18]}  Qxc3 {[%clk 0:01:27]} 29. Qa6 {[%clk 0:01:13]}  Qc6 {[%clk 0:01:17]} 30. Qa7 {[%clk 0:01:07]}  Qc2 {[%clk 0:01:02]} 31. Qf7+ {[%clk 0:01:02]}  Kh8 {[%clk 0:01:02]} 32. Nh4 {[%clk 0:00:59]}  Nxg5 {[%clk 0:00:54]} 33. fxg5 {[%clk 0:00:47]}  Qc7+ {[%clk 0:00:54]} 34. Qxc7 {[%clk 0:00:44]}  Rxc7 {[%clk 0:00:55]} 35. Nxg6+ {[%clk 0:00:44]}  Kg8 {[%clk 0:00:51]} 36. Rxe6 {[%clk 0:00:40]}  Rcc2 {[%clk 0:00:50]} 37. Nf4 {[%clk 0:00:40]}  d4 {[%clk 0:00:48]} 38. Rd6 {[%clk 0:00:39]}  Rc4 {[%clk 0:00:43]} 39. g6 {[%clk 0:00:39]}  Kf8 {[%clk 0:00:33]} 40. Rd7 {[%clk 0:00:38]}  Rf2 {[%clk 0:00:25]} 41. Rf7+ {[%clk 0:00:33]}  Kg8 {[%clk 0:00:21]} 42. Kg3 {[%clk 0:00:23]}  Rf1 {[%clk 0:00:20]} 43. Rd7 {[%clk 0:00:20]}  Rc8 {[%clk 0:00:09]} 44. Rxd4 {[%clk 0:00:14]}  Re1 {[%clk 0:00:06]} 45. h4 {[%clk 0:00:13]}  a4 {[%clk 0:00:06]} 46. h5 {[%clk 0:00:13]}  a3 {[%clk 0:00:06]} 47. Ra4 {[%clk 0:00:13]}  Re3+ {[%clk 0:00:05]} 48. Kg4 {[%clk 0:00:12]}  Rb3 {[%clk 0:00:03]} 49. Ra7 {[%clk 0:00:09]}  Rb4 {[%clk 0:00:01]} 50. g3 {[%clk 0:00:08]}  Rb3 {[%clk 0:00:01]} 51. h6 {[%clk 0:00:07]}  Rbc3 {[%clk 0:00:02]} 52. Rxg7+ {[%clk 0:00:04]}  Kh8 {[%clk 0:00:01]} 53. Rh7+ {[%clk 0:00:05]}  Kg8 {[%clk 0:00:02]} 54. Rg7+ {[%clk 0:00:04]}  Kh8 {[%clk 0:00:02]} 55. Ra7 {[%clk 0:00:03]}  a2 {[%clk 0:00:02]} 56. g7+ {[%clk 0:00:03]}  Kh7 {[%clk 0:00:02]} 57. Nh5 {[%clk 0:00:03]}  R3c4+ {[%clk 0:00:02]} 58. Kh3 {[%clk 0:00:00]}  Ra8 {[%clk 0:00:01]} 0-1


[Site "https://www.chess.com"]

[Event "Titled Tuesday Blitz July 18 Late 2023"]
[White "Roberson, Peter T"]
[Black "Broca Jimenez, Fernando"]
[WhiteFideId "412384"]
[BlackFideId "5104742"]
[WhiteElo "2471"]
[BlackElo "2265"]
[Result "0-1"]
[Round "4"]
[TimeControl "180+2"]
[Date "2023.07.18"]
[WhiteClock "0:00:00"]
[BlackClock "0:00:15"]
[Board "138"]

1. d4 {[%clk 0:03:00]}  g6 {[%clk 0:02:56]} 2. h4 {[%clk 0:02:58]}  Bg7 {[%clk 0:02:57]} 3. h5 {[%clk 0:02:58]}  Nf6 {[%clk 0:02:56]} 4. h6 {[%clk 0:02:58]}  Bf8 {[%clk 0:02:56]} 5. Nc3 {[%clk 0:02:58]}  e6 {[%clk 0:02:54]} 6. e4 {[%clk 0:02:58]}  b6 {[%clk 0:02:54]} 7. e5 {[%clk 0:02:56]}  Nd5 {[%clk 0:02:53]} 8. Nxd5 {[%clk 0:02:56]}  exd5 {[%clk 0:02:53]} 9. Nh3 {[%clk 0:02:56]}  d6 {[%clk 0:02:54]} 10. Bg5 {[%clk 0:02:55]}  Be7 {[%clk 0:02:51]} 11. Qd2 {[%clk 0:02:55]}  Bxh3 {[%clk 0:02:49]} 12. Bxe7 {[%clk 0:02:54]}  Qxe7 {[%clk 0:02:50]} 13. Rxh3 {[%clk 0:02:54]}  dxe5 {[%clk 0:02:51]} 14. dxe5 {[%clk 0:02:54]}  c6 {[%clk 0:02:46]} 15. O-O-O {[%clk 0:02:53]}  Nd7 {[%clk 0:02:45]} 16. c4 {[%clk 0:02:52]}  dxc4 {[%clk 0:02:24]} 17. Bxc4 {[%clk 0:02:34]}  O-O-O {[%clk 0:02:19]} 18. Ba6+ {[%clk 0:02:24]}  Kc7 {[%clk 0:02:16]} 19. Qd6+ {[%clk 0:02:14]}  Qxd6 {[%clk 0:02:14]} 20. exd6+ {[%clk 0:02:15]}  Kb8 {[%clk 0:02:11]} 21. Re3 {[%clk 0:02:09]}  Rhe8 {[%clk 0:02:07]} 22. Re7 {[%clk 0:02:04]}  b5 {[%clk 0:01:16]} 23. a4 {[%clk 0:01:29]}  bxa4 {[%clk 0:00:37]} 24. Rxf7 {[%clk 0:01:17]}  Nc5 {[%clk 0:00:29]} 25. Bc4 {[%clk 0:01:17]}  Rd7 {[%clk 0:00:29]} 26. Rf4 {[%clk 0:00:16]}  Red8 {[%clk 0:00:27]} 27. Rf6 {[%clk 0:00:06]}  Ne4 {[%clk 0:00:26]} 28. Rf7 {[%clk 0:00:04]}  Rxd6 {[%clk 0:00:24]} 29. Re1 {[%clk 0:00:00]}  Ng5 {[%clk 0:00:15]} 0-1


[Site "https://www.chess.com"]

[Event "Titled Tuesday Blitz July 18 Late 2023"]
[White "De Souza, Cristiano Gomes"]
[Black "Michalczak, Thomas"]
[WhiteFideId "2151758"]
[BlackFideId "4622634"]
[WhiteElo "2246"]
[BlackElo "2456"]
[Result "0-1"]
[Round "4"]
[TimeControl "180+2"]
[Date "2023.07.18"]
[WhiteClock "0:00:19"]
[BlackClock "0:00:46"]
[Board "142"]

1. d3 {[%clk 0:03:00]}  d5 {[%clk 0:02:58]} 2. Nf3 {[%clk 0:03:01]}  Nc6 {[%clk 0:02:56]} 3. g3 {[%clk 0:03:01]}  e5 {[%clk 0:02:56]} 4. Bg2 {[%clk 0:03:01]}  Be6 {[%clk 0:02:55]} 5. Nbd2 {[%clk 0:03:01]}  Qd7 {[%clk 0:02:53]} 6. O-O {[%clk 0:03:01]}  h5 {[%clk 0:02:43]} 7. h4 {[%clk 0:02:58]}  Nh6 {[%clk 0:02:32]} 8. Ng5 {[%clk 0:02:52]}  Bg4 {[%clk 0:02:30]} 9. f3 {[%clk 0:02:50]}  Bc5+ {[%clk 0:02:24]} 10. Kh2 {[%clk 0:02:47]}  O-O-O {[%clk 0:02:17]} 11. Nb3 {[%clk 0:02:29]}  Bb6 {[%clk 0:02:09]} 12. Qe1 {[%clk 0:02:08]}  f6 {[%clk 0:02:01]} 13. fxg4 {[%clk 0:02:02]}  Nxg4+ {[%clk 0:02:00]} 14. Kh1 {[%clk 0:02:01]}  fxg5 {[%clk 0:01:59]} 15. Bxg5 {[%clk 0:02:00]}  Rdf8 {[%clk 0:01:59]} 16. e4 {[%clk 0:01:47]}  Bf2 {[%clk 0:01:51]} 17. Qe2 {[%clk 0:01:39]}  d4 {[%clk 0:01:38]} 18. Bh3 {[%clk 0:01:36]}  Bxg3 {[%clk 0:01:33]} 19. Bxg4 {[%clk 0:01:33]}  hxg4 {[%clk 0:01:33]} 20. Kg2 {[%clk 0:01:28]}  Bf4 {[%clk 0:01:25]} 21. Rf2 {[%clk 0:01:13]}  g3 {[%clk 0:01:21]} 22. Rf3 {[%clk 0:01:07]}  Bxg5 {[%clk 0:01:20]} 23. Rxf8+ {[%clk 0:00:59]}  Rxf8 {[%clk 0:01:21]} 24. hxg5 {[%clk 0:00:57]}  Rf2+ {[%clk 0:01:21]} 25. Qxf2 {[%clk 0:00:57]}  gxf2 {[%clk 0:01:22]} 26. Kxf2 {[%clk 0:00:57]}  Qf7+ {[%clk 0:01:17]} 27. Ke2 {[%clk 0:00:57]}  Qf4 {[%clk 0:01:14]} 28. Rf1 {[%clk 0:00:57]}  Qxg5 {[%clk 0:01:11]} 29. Nc5 {[%clk 0:00:53]}  b6 {[%clk 0:00:47]} 30. Rf8+ {[%clk 0:00:51]}  Nd8 {[%clk 0:00:47]} 31. Ne6 {[%clk 0:00:19]}  Qg4+ {[%clk 0:00:46]} 0-1


[Site "https://www.chess.com"]

[Event "Titled Tuesday Blitz July 18 Late 2023"]
[White "Pein, Jonathan"]
[Black "SoyuzTM4"]
[WhiteFideId "417092"]
[WhiteElo "2439"]
[BlackElo "2240"]
[Result "1-0"]
[Round "4"]
[TimeControl "180+2"]
[Date "2023.07.18"]
[WhiteClock "0:01:04"]
[BlackClock "0:00:17"]
[Board "145"]

1. e4 {[%clk 0:03:00]}  c5 {[%clk 0:02:59]} 2. Nf3 {[%clk 0:03:00]}  e6 {[%clk 0:02:58]} 3. c3 {[%clk 0:02:59]}  d6 {[%clk 0:02:55]} 4. d4 {[%clk 0:02:58]}  cxd4 {[%clk 0:02:54]} 5. cxd4 {[%clk 0:02:59]}  Nf6 {[%clk 0:02:54]} 6. Nc3 {[%clk 0:02:59]}  Be7 {[%clk 0:02:50]} 7. Be2 {[%clk 0:02:59]}  O-O {[%clk 0:02:50]} 8. O-O {[%clk 0:02:59]}  Nc6 {[%clk 0:02:49]} 9. h3 {[%clk 0:02:59]}  b6 {[%clk 0:02:46]} 10. Be3 {[%clk 0:02:58]}  Bb7 {[%clk 0:02:44]} 11. Rc1 {[%clk 0:02:59]}  Rc8 {[%clk 0:02:40]} 12. b3 {[%clk 0:02:59]}  d5 {[%clk 0:02:35]} 13. e5 {[%clk 0:02:58]}  Ne4 {[%clk 0:02:35]} 14. Bd3 {[%clk 0:02:51]}  Ba3 {[%clk 0:02:29]} 15. Nxe4 {[%clk 0:02:37]}  dxe4 {[%clk 0:02:27]} 16. Bxe4 {[%clk 0:02:38]}  Bxc1 {[%clk 0:02:26]} 17. Bxc1 {[%clk 0:02:18]}  Nxd4 {[%clk 0:02:01]} 18. Bxh7+ {[%clk 0:02:13]}  Kxh7 {[%clk 0:01:52]} 19. Ng5+ {[%clk 0:01:57]}  Kg8 {[%clk 0:01:52]} 20. Qh5 {[%clk 0:01:55]}  Nf3+ {[%clk 0:01:18]} 21. gxf3 {[%clk 0:01:47]}  Qd3 {[%clk 0:01:18]} 22. Ba3 {[%clk 0:01:38]}  Rc5 {[%clk 0:00:57]} 23. Bxc5 {[%clk 0:01:38]}  bxc5 {[%clk 0:00:56]} 24. Rc1 {[%clk 0:01:20]}  Ba6 {[%clk 0:00:48]} 25. Ne4 {[%clk 0:01:18]}  c4 {[%clk 0:00:41]} 26. Kh2 {[%clk 0:01:05]}  cxb3 {[%clk 0:00:39]} 27. Nf6+ {[%clk 0:01:05]}  gxf6 {[%clk 0:00:17]} 28. Rg1+ {[%clk 0:01:04]} 1-0


[Site "https://www.chess.com"]

[Event "Titled Tuesday Blitz July 18 Late 2023"]
[White "Castella Garcia, Fausto"]
[Black "Kalaiyalahan, Akshaya"]
[WhiteFideId "3501922"]
[BlackFideId "422894"]
[WhiteElo "2435"]
[BlackElo "2238"]
[Result "1-0"]
[Round "4"]
[TimeControl "180+2"]
[Date "2023.07.18"]
[WhiteClock "0:01:32"]
[BlackClock "0:00:15"]
[Board "146"]

1. e4 {[%clk 0:03:00]}  d5 {[%clk 0:02:55]} 2. exd5 {[%clk 0:02:58]}  Qxd5 {[%clk 0:02:55]} 3. Nc3 {[%clk 0:02:59]}  Qd6 {[%clk 0:02:54]} 4. d4 {[%clk 0:02:58]}  c6 {[%clk 0:02:52]} 5. Nf3 {[%clk 0:02:58]}  Bf5 {[%clk 0:02:53]} 6. Ne5 {[%clk 0:02:58]}  Nf6 {[%clk 0:02:50]} 7. Bf4 {[%clk 0:02:57]}  Qb4 {[%clk 0:02:37]} 8. Bc4 {[%clk 0:02:48]}  e6 {[%clk 0:02:35]} 9. O-O {[%clk 0:02:48]}  Qxb2 {[%clk 0:02:21]} 10. Qe1 {[%clk 0:02:14]}  Bb4 {[%clk 0:02:14]} 11. Bd2 {[%clk 0:02:13]}  Bxc3 {[%clk 0:01:54]} 12. Bxc3 {[%clk 0:02:12]}  Qb6 {[%clk 0:01:54]} 13. Ba5 {[%clk 0:01:45]}  Qxd4 {[%clk 0:01:44]} 14. Rd1 {[%clk 0:01:44]}  Qb2 {[%clk 0:01:15]} 15. Rd8+ {[%clk 0:01:40]}  Ke7 {[%clk 0:01:15]} 16. Rxh8 {[%clk 0:01:38]}  b6 {[%clk 0:00:38]} 17. Bc3 {[%clk 0:01:30]}  Qxc2 {[%clk 0:00:28]} 18. Rxb8 {[%clk 0:01:31]}  Rxb8 {[%clk 0:00:27]} 19. Nxc6+ {[%clk 0:01:31]}  Kf8 {[%clk 0:00:15]} 20. Nxb8 {[%clk 0:01:32]} 1-0


[Site "https://www.chess.com"]

[Event "Titled Tuesday Blitz July 18 Late 2023"]
[White "Disconzi da Silva, Rodrigo"]
[Black "Osmonbekov, Talaibek"]
[WhiteFideId "2100991"]
[BlackFideId "2017253"]
[WhiteElo "2431"]
[BlackElo "2181"]
[Result "1-0"]
[Round "4"]
[TimeControl "180+2"]
[Date "2023.07.18"]
[WhiteClock "0:00:26"]
[BlackClock "0:00:00"]
[Board "149"]

1. d4 {[%clk 0:03:00]}  e6 {[%clk 0:02:52]} 2. c4 {[%clk 0:02:59]}  f5 {[%clk 0:02:52]} 3. Nf3 {[%clk 0:02:58]}  Nf6 {[%clk 0:02:52]} 4. g3 {[%clk 0:02:58]}  Be7 {[%clk 0:02:51]} 5. Bg2 {[%clk 0:02:59]}  O-O {[%clk 0:02:52]} 6. O-O {[%clk 0:02:59]}  d6 {[%clk 0:02:53]} 7. b3 {[%clk 0:02:58]}  a5 {[%clk 0:02:53]} 8. Ba3 {[%clk 0:02:58]}  Nc6 {[%clk 0:02:48]} 9. Nc3 {[%clk 0:02:54]}  Nb4 {[%clk 0:02:46]} 10. Ne1 {[%clk 0:02:45]}  e5 {[%clk 0:02:38]} 11. e3 {[%clk 0:02:24]}  c6 {[%clk 0:02:29]} 12. Nc2 {[%clk 0:02:18]}  Na6 {[%clk 0:01:41]} 13. Qd2 {[%clk 0:02:08]}  Qe8 {[%clk 0:01:23]} 14. f4 {[%clk 0:02:02]}  e4 {[%clk 0:01:21]} 15. d5 {[%clk 0:02:01]}  Qh5 {[%clk 0:01:12]} 16. h3 {[%clk 0:01:59]}  Qg6 {[%clk 0:01:11]} 17. Kh2 {[%clk 0:01:58]}  Nh5 {[%clk 0:01:04]} 18. Ne2 {[%clk 0:01:51]}  c5 {[%clk 0:00:59]} 19. Bb2 {[%clk 0:01:49]}  Nb4 {[%clk 0:00:54]} 20. a3 {[%clk 0:01:47]}  Nd3 {[%clk 0:00:53]} 21. Bc3 {[%clk 0:01:47]}  a4 {[%clk 0:00:40]} 22. b4 {[%clk 0:01:44]}  b6 {[%clk 0:00:39]} 23. Rg1 {[%clk 0:01:44]}  Bf6 {[%clk 0:00:25]} 24. Rab1 {[%clk 0:01:43]}  Ba6 {[%clk 0:00:19]} 25. b5 {[%clk 0:01:27]}  Bc8 {[%clk 0:00:17]} 26. Bxf6 {[%clk 0:01:25]}  Qxf6 {[%clk 0:00:17]} 27. Ne1 {[%clk 0:01:07]}  Nxe1 {[%clk 0:00:09]} 28. Qxe1 {[%clk 0:01:07]}  Bd7 {[%clk 0:00:09]} 29. Bf1 {[%clk 0:01:05]}  Qh6 {[%clk 0:00:08]} 30. Nc3 {[%clk 0:01:04]}  Kh8 {[%clk 0:00:08]} 31. Be2 {[%clk 0:01:03]}  Nf6 {[%clk 0:00:06]} 32. Qd1 {[%clk 0:01:02]}  Rg8 {[%clk 0:00:05]} 33. Nxa4 {[%clk 0:00:58]}  g5 {[%clk 0:00:05]} 34. Nxb6 {[%clk 0:00:56]}  Rxa3 {[%clk 0:00:03]} 35. Ra1 {[%clk 0:00:43]}  Rxe3 {[%clk 0:00:01]} 36. Ra7 {[%clk 0:00:36]}  gxf4 {[%clk 0:00:01]} 37. Nxd7 {[%clk 0:00:29]}  Nxd7 {[%clk 0:00:00]} 38. Rxd7 {[%clk 0:00:26]} 1-0


[Site "https://www.chess.com"]

[Event "Titled Tuesday Blitz July 18 Late 2023"]
[White "Mangialardo, Tiago Carvalho"]
[Black "Kovacsy, Barnabas"]
[WhiteFideId "2130718"]
[BlackFideId "769290"]
[WhiteElo "2151"]
[BlackElo "2431"]
[Result "0-1"]
[Round "4"]
[TimeControl "180+2"]
[Date "2023.07.18"]
[WhiteClock "0:00:00"]
[BlackClock "0:00:26"]
[Board "150"]

1. e4 {[%clk 0:03:00]}  c5 {[%clk 0:03:00]} 2. Nf3 {[%clk 0:03:00]}  e6 {[%clk 0:03:00]} 3. c3 {[%clk 0:02:59]}  d5 {[%clk 0:02:57]} 4. exd5 {[%clk 0:03:00]}  Qxd5 {[%clk 0:02:56]} 5. d4 {[%clk 0:02:57]}  Nf6 {[%clk 0:02:56]} 6. Na3 {[%clk 0:02:53]}  Nc6 {[%clk 0:02:55]} 7. Nb5 {[%clk 0:02:50]}  Qd8 {[%clk 0:02:55]} 8. Bf4 {[%clk 0:02:50]}  Nd5 {[%clk 0:02:47]} 9. Bg5 {[%clk 0:02:23]}  Be7 {[%clk 0:02:41]} 10. Bxe7 {[%clk 0:02:20]}  Qxe7 {[%clk 0:02:39]} 11. dxc5 {[%clk 0:02:20]}  O-O {[%clk 0:02:39]} 12. Nd6 {[%clk 0:02:12]}  b6 {[%clk 0:02:27]} 13. Nxc8 {[%clk 0:01:54]}  Raxc8 {[%clk 0:02:23]} 14. cxb6 {[%clk 0:01:48]}  axb6 {[%clk 0:02:24]} 15. Ba6 {[%clk 0:01:45]}  Ra8 {[%clk 0:02:21]} 16. Bb5 {[%clk 0:01:42]}  Na7 {[%clk 0:02:03]} 17. Ba4 {[%clk 0:01:33]}  b5 {[%clk 0:01:52]} 18. Bc2 {[%clk 0:01:25]}  Rfd8 {[%clk 0:01:51]} 19. Qe2 {[%clk 0:01:03]}  b4 {[%clk 0:01:38]} 20. c4 {[%clk 0:00:55]}  Nf6 {[%clk 0:01:37]} 21. O-O {[%clk 0:00:53]}  Nc6 {[%clk 0:01:37]} 22. Rfd1 {[%clk 0:00:35]}  Rxd1+ {[%clk 0:01:34]} 23. Qxd1 {[%clk 0:00:34]}  Qc5 {[%clk 0:01:27]} 24. Qe2 {[%clk 0:00:26]}  h6 {[%clk 0:01:20]} 25. Bb3 {[%clk 0:00:22]}  Na5 {[%clk 0:00:49]} 26. Qd1 {[%clk 0:00:22]}  Ne4 {[%clk 0:00:39]} 27. Bc2 {[%clk 0:00:04]}  Qxf2+ {[%clk 0:00:35]} 28. Kh1 {[%clk 0:00:04]}  Nf6 {[%clk 0:00:27]} 29. Qd2 {[%clk 0:00:02]}  Qxd2 {[%clk 0:00:26]} 30. Nxd2 {[%clk 0:00:03]}  Rd8 {[%clk 0:00:26]} 31. Nf3 {[%clk 0:00:00]}  Nxc4 {[%clk 0:00:26]} 0-1


[Site "https://www.chess.com"]